Workbook

Sheet 12 Burden Hours Collection
A1: RURAL BUSINESS COOPERATIVE SERVICE
A2: RURAL INNOVATION STRONGER ECONOMY (RISE) GRANT PROGRAM
A3: INFORMATION COLLECTION BURDEN HOURS
A4: OMB # 0570-0075
A5: 2025-03-03
A7: Estimated No. of Total Respondents (Applicants) | C7: 60 | J7: Estimated No. of Total Awards (Awardees) | K7: 10
A8: Average hours per response | C8: =I9/G9 -> 2.15592 | J8: Number of responses per respondent | K8: =G9/C7 -> 14.2167
A9: Gray Columns have automatic formulas. DO NOT input numbers in these columns. | F9: TOTAL | G9: =SUM(G12:G49) -> 853 | I9: =ROUND(SUM(I12:I49),0) -> 1,839 | K9: =ROUND(SUM(K12:K49),-1) -> $167,900
A10: (A) | B10: (B) | C10: (C) | D10: (D) | E10: (E) | F10: (F) | G10: (G) | H10: (H) | I10: (I) | J10: (J) | K10: (K)
A11: Regulation Reference 4284.XXXX | B11: Title | C11: Form No. (If Any) | D11: % of Respondents Line Item is Applicable To | E11: Estimated # of Respondents | F11: Reports Filed Annually | G11: Total Responses (E) x (F) | H11: Estimated # of Hours Per Response | I11: Estimated Total Hours (G) x (H) | J11: Prof. Wage Rate | K11: Total Cost (I) x (J)
A12: APPLICATION & ELGIBILITY
A13: 1103 | B13: Rural in character determination request | C13: written | D13: 10% | E13: =ROUND(($C$7*D13),0) -> 6 | F13: 1 | G13: =E13*F13 -> 6 | H13: 3.00 | I13: =ROUND(IF((H13*G13)="","",(H13*G13)),0) -> 18 | J13: ='12 Est Prof Wage Rate'!$G$36 -> $91.30 | K13: =ROUND(IF((J13*I13)="","",(J13*I13)),0) -> $1,643
A14: 1105 | B14: Request for Appeal | C14: written | D14: 10% | E14: =ROUND(($C$7*D14),0) -> 6 | F14: 1 | G14: 6 | H14: 2.00 | I14: =ROUND(IF((H14*G14)="","",(H14*G14)),0) -> 12 | J14: ='12 Est Prof Wage Rate'!$G$36 -> $91.30 | K14: =ROUND(IF((J14*I14)="","",(J14*I14)),0) -> $1,096
A15: 1108(d); 1113(e) | B15: Environmental Analysis | C15: written | D15: 100% | E15: 60 | F15: 1 | G15: =E15*F15 -> 60 | H15: 4.00 | I15: 240 | J15: ='12 Est Prof Wage Rate'!$G$36 -> $91.30 | K15: $21,912
A16: 1108(e) | B16: Discrimination Compliants | C16: written | D16: 2% | E16: 1 | F16: 1 | G16: 1 | H16: 2.00 | I16: 2 | J16: ='12 Est Prof Wage Rate'!$G$36 -> $91.30 | K16: =ROUND(IF((J16*I16)="","",(J16*I16)),0) -> $183
A17: 1109(a) | B17: Certification of no outstanding judgements | C17: written | D17: 100% | E17: 60 | F17: 1 | G17: =E17*F17 -> 60 | H17: 0.25 | I17: 15 | J17: ='12 Est Prof Wage Rate'!$G$36 -> $91.30 | K17: $1,370
A18: 1110(d) | B18: Application modification | C18: written | D18: 10% | E18: 6 | F18: 1 | G18: =E18*F18 -> 6 | H18: 1.00 | I18: 6 | J18: ='12 Est Prof Wage Rate'!$G$36 -> $91.30 | K18: $548
A19: 1110(f) | B19: Application withdrawal | C19: written | D19: 10% | E19: 6 | F19: 1 | G19: 6 | H19: 0.50 | I19: 3 | J19: ='12 Est Prof Wage Rate'!$G$36 -> $91.30 | K19: $274
A20: 1114(b); 1119(c) | B20: Matching funds availability | C20: written | D20: 100% | E20: 60 | F20: 1 | G20: 60 | H20: 0.50 | I20: 30 | J20: ='12 Est Prof Wage Rate'!$G$36 -> $91.30 | K20: $2,739
A21: 1115(a) | B21: Concept Proposal | C21: written | D21: 100% | E21: 60 | F21: 1 | G21: =E21*F21 -> 60 | H21: =1+1.5+2+3 -> 7.50 | I21: 450 | J21: ='12 Est Prof Wage Rate'!$G$36 -> $91.30 | K21: $41,085
A22: 1115(b)(1) | B22: SAM registration | C22: written | D22: 100% | E22: 60 | F22: 1 | G22: =E22*F22 -> 60 | H22: 1.00 | I22: 60 | J22: ='12 Est Prof Wage Rate'!$G$36 -> $91.30 | K22: $5,478
A23: 1115(b)(2)(vi) | B23: Identify ethnicity, race, and sex characteristics of lead applicant's leadership | C23: written | D23: 2% | E23: 1 | F23: 1 | G23: =E23*F23 -> 1 | H23: 1.00 | I23: 1 | J23: ='12 Est Prof Wage Rate'!$G$36 -> $91.30 | K23: $91
A24: 1115(b)(2)(vii) | B24: Certification that the Applicant is a legal entity in good standing | C24: written | D24: 100% | E24: 60 | F24: 1 | G24: 50 | H24: 0.15 | I24: 8 | J24: ='12 Est Prof Wage Rate'!$G$36 -> $91.30 | K24: $730
A25: 1115(b)(2)(viii) | B25: Identify known relationship or association with Agency employee | C25: written | D25: 30% | E25: 18 | F25: 1 | G25: =E25*F25 -> 18 | H25: 0.50 | I25: 9 | J25: ='12 Est Prof Wage Rate'!$G$36 -> $91.30 | K25: $822
A26: 1115(b)(2)(ix) | B26: Concept Proposal Updates | C26: written | D26: 30% | E26: 18 | F26: 1 | G26: 18 | H26: 1.00 | I26: 18 | J26: ='12 Est Prof Wage Rate'!$G$36 -> $91.30 | K26: $1,643
A27: 1115(b)(2)(x); 1117(a) | B27: Readiness demonstration | C27: written | D27: 100% | E27: 60 | F27: 1 | G27: 60 | H27: 2.00 | I27: 120 | J27: ='12 Est Prof Wage Rate'!$G$36 -> $91.30 | K27: $10,956
A28: 1115(b)(2)(xi); 1117(b) | B28: Targeted inititatives documentation | C28: written | D28: 100% | E28: 60 | F28: 1 | G28: 60 | H28: 2.00 | I28: 120 | J28: ='12 Est Prof Wage Rate'!$G$36 -> $91.30 | K28: $10,956
A29: 1115(b)(2)(xii) | B29: Jobs and benefits to rural small and disadvantaged businesses discussion | C29: written | D29: 100% | E29: 60 | F29: 1 | G29: 60 | H29: 2.00 | I29: 120 | J29: ='12 Est Prof Wage Rate'!$G$36 -> $91.30 | K29: $10,956
A30: 1115(b)(2)(xiii); 1117(d); 1117(f) | B30: Targeted region discussion | C30: written | D30: 100% | E30: 60 | F30: 1 | G30: 60 | H30: 4.00 | I30: 240 | J30: ='12 Est Prof Wage Rate'!$G$36 -> $91.30 | K30: $21,912
A31: 1115(b)(2)(xiv) | B31: Financial information | C31: written | D31: 100% | E31: 60 | F31: 1 | G31: 60 | H31: 2.00 | I31: 120 | J31: ='12 Est Prof Wage Rate'!$G$36 -> $91.30 | K31: $10,956
A32: 1117(c) | B32: Project support documentation | C32: written | D32: 50% | E32: 30 | F32: 1 | G32: 30 | H32: 1.00 | I32: 30 | J32: ='12 Est Prof Wage Rate'!$G$36 -> $91.30 | K32: $2,739
B33: Build America Buy America Requirements | C33: written | D33: 17% | E33: 10 | F33: 1 | G33: 10 | H33: 2.00 | I33: 20 | J33: ='12 Est Prof Wage Rate'!$G$36 -> $91.30 | K33: $1,826
A34: AWARDING & ADMINISTERING GRANT
A35: 1110(g)(1) | B35: Request for time extension | C35: written | D35: 20% | E35: =ROUND((D35*$K$7),0) -> 2 | F35: 1 | G35: =E35*F35 -> 2 | H35: 0.50 | I35: =ROUND(IF((H35*G35)="","",(H35*G35)),0) -> 1 | J35: ='12 Est Prof Wage Rate'!$G$36 -> $91.30 | K35: =ROUND(IF((J35*I35)="","",(J35*I35)),0) -> $91
A36: 1119(a) | B36: Bonding and insurance requirement | C36: written | D36: 100% | E36: =ROUND((D36*$K$7),0) -> 10 | F36: 1 | G36: 10 | H36: 0.50 | I36: 5 | J36: ='12 Est Prof Wage Rate'!$G$36 -> $91.30 | K36: $457
A37: 1119(d)(iii) | B37: SAM registration maintenance | C37: written | D37: 100% | E37: 10 | F37: 1 | G37: =E37*F37 -> 10 | H37: 1.00 | I37: 10 | J37: ='12 Est Prof Wage Rate'!$G$36 -> $91.30 | K37: $913
B38: Build America Buy America Requirements | C38: written | D38: 100% | E38: 10 | F38: 1 | G38: 10 | H38: 5.00 | I38: 50 | J38: ='12 Est Prof Wage Rate'!$G$36 -> $91.30 | K38: $4,565
A39: SERVICING & REPORTING
A40: 1120(a) | B40: Inspection | C40: written | D40: 100% | E40: 10 | F40: 1 | G40: =E40*F40 -> 10 | H40: 4.00 | I40: =ROUND(IF((H40*G40)="","",(H40*G40)),0) -> 40 | J40: ='12 Est Prof Wage Rate'!$G$36 -> $91.30 | K40: =ROUND(IF((J40*I40)="","",(J40*I40)),0) -> $3,652
A41: 1120(b)(2) | B41: Programmatic changes- project cost or scope | C41: written | D41: 20% | E41: 2 | F41: 1 | G41: =E41*F41 -> 2 | H41: 2.00 | I41: 4 | J41: ='12 Est Prof Wage Rate'!$G$36 -> $91.30 | K41: $365
A42: 1120(b)(3) | B42: Programmatic changes- change in contractor or vendor | C42: written | D42: 20% | E42: 2 | F42: 1 | G42: 2 | H42: 1.00 | I42: 2 | J42: ='12 Est Prof Wage Rate'!$G$36 -> $91.30 | K42: $183
A43: 1120(c) | B43: Transfer of applicant | C43: written | D43: 10% | E43: 1 | F43: 1 | G43: 1 | H43: 1.00 | I43: 1 | J43: ='12 Est Prof Wage Rate'!$G$36 -> $91.30 | K43: $91
A44: 1120(c) | B44: Transfer of Financial Assistance Agreement | C44: written | D44: 20% | E44: 2 | F44: 1 | G44: 2 | H44: 1.00 | I44: 2 | J44: ='12 Est Prof Wage Rate'!$G$36 -> $91.30 | K44: $183
A45: 1120(d) | B45: Disposition of acquired property | C45: written | D45: 20% | E45: 2 | F45: 1 | G45: 2 | H45: 1.00 | I45: 2 | J45: ='12 Est Prof Wage Rate'!$G$36 -> $91.30 | K45: $183
A46: 1120(e)(1) | B46: Financial management | C46: written | D46: 100% | E46: 10 | F46: 1 | G46: 10 | H46: 1.00 | I46: 10 | J46: ='12 Est Prof Wage Rate'!$G$36 -> $91.30 | K46: $913
A47: 1120(e)(2) | B47: Records management | C47: written | D47: 100% | E47: 10 | F47: 1 | G47: 10 | H47: 2.00 | I47: 20 | J47: ='12 Est Prof Wage Rate'!$G$36 -> $91.30 | K47: $1,826
A48: 1120(f) | B48: Audit requirements | C48: written | D48: 100% | E48: 10 | F48: 1 | G48: 10 | H48: 1.00 | I48: 10 | J48: ='12 Est Prof Wage Rate'!$G$36 -> $91.30 | K48: $913
A49: 1120(h)(2) | B49: Semi-annual performance report | C49: written | D49: 100% | E49: 10 | F49: 2 | G49: 20 | H49: 2.00 | I49: 40 | J49: ='12 Est Prof Wage Rate'!$G$36 -> $91.30 | K49: $3,652

Sheet 12 Not Inc in Burden Hours
A1: ='12 Burden Hours Collection'!A1 -> RURAL BUSINESS COOPERATIVE SERVICE
A2: ='12 Burden Hours Collection'!A2 -> RURAL INNOVATION STRONGER ECONOMY (RISE) GRANT PROGRAM
A3: ='12 Burden Hours Collection'!A3 -> INFORMATION COLLECTION BURDEN HOURS
A4: ='12 Burden Hours Collection'!A4 -> OMB # 0570-0075
A5: ='12 Burden Hours Collection'!A5 -> 2025-03-03
A7: Estimated No. of Total Respondents (Applicants) | C7: ='12 Burden Hours Collection'!C7 -> 60 | J7: Estimated No. of Total Awards (Awardees) | K7: ='12 Burden Hours Collection'!K7 -> 10
A8: Average hours per response | C8: =I9/G9 -> 1.791 | J8: Number of responses per respondent | K8: =G9/C7 -> 7.17
A9: Gray Columns have automatic formulas. DO NOT input numbers in these columns. | F9: TOTAL | G9: =SUM(G13:G28) -> 430 | I9: =SUM(I13:I28) -> 770 | K9: =SUM(K13:K28) -> $70,301
A10: (A) | B10: (B) | C10: (C) | D10: (D) | E10: (E) | F10: (F) | G10: (G) | H10: (H) | I10: (I) | J10: (J) | K10: (K)
A11: Regulation Reference | B11: Title | C11: Form No. (If Any) | D11: % of Respondents Line Item is Applicable To | E11: Estimated # of Respondents | F11: Reports Filed Annually | G11: Total Responses (E) x (F) | H11: Estimated # of Hours Per Response | I11: Estimated Total Hours (G) x (H) | J11: Prof. Wage Rate | K11: Total Cost (I) x (J)
A12: APPLICATION & ELGIBILITY
A13: 1108(c) | B13: Compliance Review | C13: RD 400-8 (0570-0062; 0575-0018, 0575-0189) | D13: 100% | E13: =D13*$C$7 -> 60 | F13: 1 | G13: =E13*F13 -> 60 | H13: 8 | I13: =IF((H13*G13)="","",(H13*G13)) -> 480 | J13: ='12 Est Prof Wage Rate'!$G$36 -> $91.30 | K13: =IF((J13*I13)="","",(J13*I13)) -> $43,824
A14: 1115(b)(2)(i) | B14: Application for Federral Assistance | C14: SF-424 (4040-0004) | D14: 100% | E14: =D14*$C$7 -> 60 | F14: 1 | G14: =E14*F14 -> 60 | H14: 1 | I14: =IF((H14*G14)="","",(H14*G14)) -> 60 | J14: ='12 Est Prof Wage Rate'!$G$36 -> $91.30 | K14: =IF((J14*I14)="","",(J14*I14)) -> $5,478
A15: 1115(b)(2)(ii) | B15: Budget Information - Non-Construction Programs | C15: SF 424A (4040-0006) | D15: 100% | E15: 60 | F15: 1 | G15: 60 | H15: 1 | I15: 60 | J15: ='12 Est Prof Wage Rate'!$G$36 -> $91.30 | K15: $5,478
A16: 1115(b)(2)(iii) | B16: Budget Information - Construction Programs | C16: SF-424C (4040-0008) | D16: 50% | E16: 30 | F16: 1 | G16: 30 | H16: 1 | I16: 30 | J16: ='12 Est Prof Wage Rate'!$G$36 -> $91.30 | K16: $2,739
A17: 115(b)(2)(iv) | B17: Assurances - Construction Programs | C17: SF-424D (4040-0009) | D17: 50% | E17: 30 | F17: 1 | G17: 30 | H17: 0.5 | I17: 15 | J17: ='12 Est Prof Wage Rate'!$G$36 -> $91.30 | K17: $1,370
A18: 1115(b)(2)(v) | B18: Equal Opportunity Agreement | C18: RD 400-1 (0575-0201) | D18: 100% | E18: 60 | F18: 1 | G18: =E18*F18 -> 60 | H18: =10/60 -> 0.1667 | I18: =IF((H18*G18)="","",(H18*G18)) -> 10 | J18: ='12 Est Prof Wage Rate'!$G$36 -> $91.30 | K18: =IF((J18*I18)="","",(J18*I18)) -> $913
A19: AWARDING & ADMINISTERING GRANT
A20: 1103; 1110(g); 1119(c),(e)&(f); 1120; 1120(c); | B20: Rural Business-Cooperative Service Financial Assistance Agreement | C20: RD 4280-2 (0570-0067) | D20: 100% | E20: =D20*$K$7 -> 10 | F20: 1 | G20: =E20*F20 -> 10 | H20: 1 | I20: =IF((H20*G20)="","",(H20*G20)) -> 10 | J20: ='12 Est Prof Wage Rate'!$G$36 -> $91.30 | K20: =IF((J20*I20)="","",(J20*I20)) -> $913
A21: 1119(b) | B21: Request for Obligation of Funds | C21: RD 1940-1 (0570-0062, 0067) | D21: 100% | E21: =D21*$K$7 -> 10 | F21: 1 | G21: =E21*F21 -> 10 | H21: 0.25 | I21: =IF((H21*G21)="","",(H21*G21)) -> 3 | J21: ='12 Est Prof Wage Rate'!$G$36 -> $91.30 | K21: =IF((J21*I21)="","",(J21*I21)) -> $228
A22: 1119(b) | B22: Letter of Intent to Meet Conditions | C22: RD 1942-46 (0575-0015, 0570-0021, 0061, 0062, 0572-0137) | D22: 100% | E22: =D22*$K$7 -> 10 | F22: 1 | G22: =E22*F22 -> 10 | H22: 1 | I22: =IF((H22*G22)="","",(H22*G22)) -> 10 | J22: ='12 Est Prof Wage Rate'!$G$36 -> $91.30 | K22: =IF((J22*I22)="","",(J22*I22)) -> $913
B23: Assurance Agreement | C23: RD 400-4 (0575-0201) | D23: 100% | E23: =D23*$K$7 -> 10 | F23: 1 | G23: =E23*F23 -> 10 | H23: 0.25 | I23: =IF((H23*G23)="","",(H23*G23)) -> 3 | J23: ='12 Est Prof Wage Rate'!$G$36 -> $91.30 | K23: =IF((J23*I23)="","",(J23*I23)) -> $228
B24: Disclosure of Lobbying Activities | C24: SF LLL (4040-0013) | D24: 100% | E24: 10 | F24: 1 | G24: 10 | H24: 1 | I24: 10 | J24: ='12 Est Prof Wage Rate'!$G$36 -> $91.30 | K24: $913
A25: SERVICING & REPORTING
A26: 1120(g) | B26: Request for Advance or Reimbursement | C26: SF-270 (4040-0012) | D26: 100% | E26: =D26*$K$7 -> 10 | F26: 4 | G26: =E26*F26 -> 40 | H26: 1 | I26: =IF((H26*G26)="","",(H26*G26)) -> 40 | J26: ='12 Est Prof Wage Rate'!$G$36 -> $91.30 | K26: =IF((J26*I26)="","",(J26*I26)) -> $3,652
A27: 1120(g) | B27: Outlay Report and Request for Reimbursement for Construction Projects | C27: SF-271 (4040-0011) | D27: 50% | E27: 5 | F27: 4 | G27: 20 | H27: 1 | I27: 20 | J27: ='12 Est Prof Wage Rate'!$G$36 -> $91.30 | K27: $1,826
A28: 1120(h)(1) | B28: Federal Financial Report | C28: SF-425 (4040-0014) | D28: 100% | E28: 10 | F28: 2 | G28: 20 | H28: 1 | I28: 20 | J28: ='12 Est Prof Wage Rate'!$G$36 -> $91.30 | K28: $1,826

Sheet 12 Est Prof Wage Rate
A1: ='12 Burden Hours Collection'!A1 -> RURAL BUSINESS COOPERATIVE SERVICE
A2: ='12 Burden Hours Collection'!A2 -> RURAL INNOVATION STRONGER ECONOMY (RISE) GRANT PROGRAM
A3: ='12 Burden Hours Collection'!A3 -> INFORMATION COLLECTION BURDEN HOURS
A4: ='12 Burden Hours Collection'!A4 -> OMB # 0570-0075
A5: ='12 Burden Hours Collection'!A5 -> 2025-03-03
A7: Instructions:
A8: 1. Use the U.S. Bureau of Labor Statistics Occupational Emplyment and Wage Statistics Link below to complete Columns A, B, C for the table below.
A9: a. Click the link: | B9: https://www.bls.gov/oes/tables.htm
A10: b. Under the latest Month Year (May 2023) click Occupation Profiles
A11: c. Use the Occupational Titles to choose which professions (A) need to be added to the table below. You can more than one occupation or just one.
A12: d. The code in front of each Occupational Title is the Occupation Code that goes in (B) for the table below.
A13: e. When you click on each Occupational Titles, choose the Mean Hourly Wage to input in (C) for the table below.
A14: 2. Use the U.S. Bureau of Labor Economic News Release, Employer Costs for Employee Compension to complete Column D for the table below.
A15: a. Click the link: | B15: https://www.bls.gov/news.release/ecec.toc.htm
A16: b. Choose "The PDF verison of the news release" link
A17: c. The latest (December 17, 2024) News Release for Employer Costs for Employee Compensation - September 2024 opens in separate tab.
A18: d. On first page, second paragraph use the benefit costs % of: | D18: 29.60%
A19: 3. For each profession fill in the % for (F). The total for the column should be 100%.
A20: a. Note that if there is only one profession then (F) would be 100%.
A22: Gray Columns have automatic formulas. DO NOT input numbers in these columns.
A23: (A) | B23: (B) | C23: (C) | D23: (D) | E23: (E) | F23: (F) | G23: (G)
A24: Profession | B24: Bureau of Labor Occupation Code 1.d | C24: Mean Wage 1.e | D24: Benefits 2 (C) * (2.d) | E24: Total Hourly Wage (C ) + (D) | F24: % Time Spent on Burden | G24: Weighted Hourly Salary (E) * (F)
A25: Public Relations Managers | B25: 11-2032 | C25: $76.65 | D25: =IF(C25=0,"",(C25*$D$18)) -> $22.69 | E25: =IF(SUM(C25:D25)=0,"",SUM(C25:D25)) -> $99.34 | F25: 50% | G25: =IF(E25="","",(E25*F25)) -> $49.67
A26: Fundraising Managers | B26: 11-2033 | C26: $64.24 | D26: =IF(C26=0,"",(C26*$D$18)) -> $19.02 | E26: =IF(SUM(C26:D26)=0,"",SUM(C26:D26)) -> $83.26 | F26: 50% | G26: =IF(E26="","",(E26*F26)) -> $41.63
D27: =IF(C27=0,"",(C27*$D$18)) ->  | E27: =IF(SUM(C27:D27)=0,"",SUM(C27:D27)) ->  | G27: =IF(E27="","",(E27*F27)) -> 
D28: =IF(C28=0,"",(C28*$D$18)) ->  | E28: =IF(SUM(C28:D28)=0,"",SUM(C28:D28)) ->  | G28: =IF(E28="","",(E28*F28)) -> 
A36: TOTAL | D36: =IF(C36=0,"",(C36*#REF!)) ->  | F36: =SUM(F25:F35) -> 100% | G36: =ROUND(SUM(G25:G35),1) -> $91.30

Sheet 14 Annual Cost to Fed Gov Est
A1: ='12 Burden Hours Collection'!A1 -> RURAL BUSINESS COOPERATIVE SERVICE
A2: ='12 Burden Hours Collection'!A2 -> RURAL INNOVATION STRONGER ECONOMY (RISE) GRANT PROGRAM
A3: ='12 Burden Hours Collection'!A3 -> INFORMATION COLLECTION BURDEN HOURS
A4: ='12 Burden Hours Collection'!A4 -> OMB # 0570-0075
A5: 2025-03-03
A7: 1. OPM GS & SES Pay Tables:
A8: Click Link | B8: Pay & Leave (opm.gov)
A9: Click "pay tables" from first paragraph
A10: Click current Year at top under Salaries & Wages
A12: a. OPM GS Pay Tables: Under "General Schedule (GS) & Locality Pay Tables" click 20## GS Pay Tables (ex. 2024 GS Pay Tables)
A13: Then choose Annual Rate Table for St. Louis - St. Charles - Farminton, MO-IL
A15: b. OPM SES Schedules: Under "Executive & Senior Level Employee Pay Tables" click "Rates of Pay for the Executive Schedule"
A16: Then choose Annual Rate Table for Basic Rates of Pay for Members of the Senior Executive Service.
A18: 2. Benefit % (OMB Memo M-08 13) | B18: https://obamawhitehouse.archives.gov/sites/default/files/omb/assets/omb/memoranda/fy2008/m08-13.pdf | K18: 36.25%
A20: Gray & Blue Columns have automatic formulas. DO NOT input numbers in these columns. | G20: Total | H20: =H22+H25+H29 -> 51.00 | I20: =I22+I25+I29 -> $4,190 | K20: =K22+K25+K29 -> $86,000
A21: Staff Position | B21: GS Grade | C21: GS Step | D21: GS Salary | E21: Hourly Rate Calc | F21: Benefits Calc | G21: Total Salary Rate Calc | H21: Hours Required | I21: Cost Subtotals | J21: # of Entities | K21: Total Costs
A22: APPLICATION & ELGIBILITY | H22: =SUM(H23:H24) -> 11.00 | I22: =ROUND((SUM(I23:I24)),0) -> $882 | J22: 60 | K22: =J22*I22 -> $52,920
A23: Program Analyst | B23: 13 | C23: 5 | D23: $122,465 | E23: =(D23/52)/40 -> $58.88 | F23: =E23*$K$18 -> $21.34 | G23: =E23+F23 -> $80.22 | H23: 10.00 | I23: =H23*G23 -> $802.20
A24: Environmental Protection Specialist | B24: 13 | C24: 5 | D24: $122,465 | E24: =(D24/52)/40 -> $58.88 | F24: =E24*$K$18 -> $21.34 | G24: =E24+F24 -> $80.22 | H24: 1.00 | I24: =H24*G24 -> $80.22
A25: AWARDING & ADMINISTERING GRANT | H25: =SUM(H26:H28) -> 28.00 | I25: =ROUND((SUM(I26:I28)),0) -> $2,345 | J25: 10 | K25: =J25*I25 -> $23,450
A26: Program Analyst | B26: 13 | C26: 5 | D26: $122,465 | E26: =(D26/52)/40 -> $58.88 | F26: =E26*$K$18 -> $21.34 | G26: =E26+F26 -> $80.22 | H26: 26.00 | I26: =H26*G26 -> $2,085.73
A27: Assistant Administrator | D27: $187,930 | E27: =(D27/52)/40 -> $90.35 | F27: =E27*$K$18 -> $32.75 | G27: =E27+F27 -> $123.10 | H27: 1.00 | I27: =H27*G27 -> $123.10
A28: Administrator | D28: $207,500 | E28: $99.76 | F28: $36.16 | G28: $135.92 | H28: 1.00 | I28: $135.92
A29: SERVICING & REPORTING | H29: =SUM(H30:H30) -> 12.00 | I29: =ROUND((SUM(I30:I30)),0) -> $963 | J29: 10 | K29: =J29*I29 -> $9,630
A30: Program Analyst | B30: 13 | C30: 5 | D30: $122,465 | E30: =(D30/52)/40 -> $58.88 | F30: =E30*$K$18 -> $21.34 | G30: =E30+F30 -> $80.22 | H30: 12.00 | I30: $962.65
